[Event "Reykjavik Open 2024"]
[Site "Reykjavik"]
[Date "2024.03.19"]
[Round "7.10"]
[White "Nevednichy, Vladislav"]
[Black "Galperin, Platon"]
[Result "1/2-1/2"]
[ECO "C55"]
[WhiteElo "2445"]
[BlackElo "2555"]
[Annotator "TA"]
[PlyCount "64"]
[EventDate "2024.03.12"]
[EventCountry "ISL"]
[SourceTitle "playchess.com"]
[Source "ChessBase"]
[SourceQuality "1"]
[TimeControl "40/5400+30:1800+30"]

{[%evp 10,64,35,42,36,22,35,18,33,36,37,45,43,22,16,12,22,-7,0,0,0,0,20,0,5,14,8,6,10,0,0,0,14,14,18,0,24,0,0,0,0,0,29,11,19,10,19,0,20,8,8,10,18,19,14,0,17]} 1. e4 {[%emt 0:00:04]} e5 {[%emt 0:00:40]} 2. Nf3 {[%emt 0:00:06]} Nc6 {[%emt 0:00:10]} 3. Bc4 {[%emt 0:00:20]} Nf6 {[%emt 0:00:08]} 4. d3 {[%emt 0:00:09]} h6 {[%emt 0:00:07]} 5. O-O {[%emt 0:00:29]} d6 {[%emt 0:00:06]} 6. c3 {[%emt 0:00:06]} g5 {[%emt 0:00:07]} 7. a4 {[%emt 0:00:15]} Bg7 {[%emt 0:00:10]} 8. Nbd2 {[%emt 0:01:23]} a5 {[%emt 0:00:14]} 9. Bb3 {[%emt 0:04:26]} Qe7 {[%emt 0:04:25]} 10. Nc4 {[%emt 0:00:37]} Be6 {[%emt 0:00:08]} 11. Ne3 {[%emt 0:00:59]} Qd7 {[%emt 0:00:06]} 12. Bxe6 {[%emt 0:05:52]} fxe6 {[%emt 0:01:51]} 13. Qb3 {[%emt 0:18:30]} d5 {[%emt 0:38:34]} 14. exd5 {[%emt 0:10:58]} (14. Qxb7 Rb8 15. Nxe5 (15. Qa6 $2 Rb6 $19) 15... Rxb7 $19) 14... exd5 {[%emt 0:00:05]} 15. d4 {[%emt 0:00:24]} exd4 {[%emt 0:01:30]} 16. Nxd4 {[%emt 0:23:05]} Nxd4 {[%emt 0:00:09]} 17. cxd4 {[%emt 0:00:01]} c6 {[%emt 0:02:08]} 18. Qd3 {[%emt 0:00:17]} O-O {[%emt 0:07:15]} 19. Nf5 {[%emt 0:00:27]} Ne4 {[%emt 0:00:57]} 20. Nxg7 {[%emt 0:00:28]} Kxg7 {[%emt 0:00:06]} 21. f3 {[%emt 0:00:11]} Nd6 {[%emt 0:00:10][%cal Be4d6,Bd6c4,Bc4d2][%mdl 32]} 22. Bd2 {[%emt 0:01:23]} Nc4 {[%emt 0:02:04]} 23. b3 {[%emt 0:08:59]} Nxd2 {[%emt 0:02:04]} 24. Qxd2 {[%emt 0:00:32]} Qd6 {[%emt 0:00:58]} 25. Rae1 {[%emt 0:00:29]} Rf4 {[%emt 0:23:19]} 26. g3 {[%emt 0:00:34]} Rf6 {[%emt 0:00:23] The position is equal.} 27. Kg2 {[%emt 0:05:56]} b6 {[%emt 0:01:05]} 28. Re3 {[%emt 0:01:33]} Raf8 {[%emt 0:00:11]} 29. Rfe1 {[%emt 0:00:36]} R8f7 {[%emt 0:00:09]} 30. R1e2 {[%emt 0:02:53]} Qa3 {[%emt 0:03:26]} 31. Qc3 {[%emt 0:03:44]} Qd6 {[%emt 0:00:05]} 32. Qd2 {[%emt 0:00:04]} Qa3 {[%emt 0:00:06] Weighted Error Value: White=0.08 (flawless) /Black=0.06 (flawless) .  Inaccurate:     	White=1     	Black=2      OK:         	White=9     	Black=13} 1/2-1/2

[Event "Reykjavik Open 2024"]
[Site "Reykjavik"]
[Date "2024.03.19"]
[Round "7.11"]
[White "Fernandez, Daniel Howard"]
[Black "Lu, Miaoyi"]
[Result "0-1"]
[ECO "A14"]
[WhiteElo "2532"]
[BlackElo "2392"]
[Annotator "TA"]
[PlyCount "72"]
[EventDate "2024.03.12"]
[EventCountry "ISL"]
[SourceTitle "playchess.com"]
[Source "ChessBase"]
[SourceQuality "1"]
[TimeControl "40/5400+30:1800+30"]

{[%evp 12,71,8,11,12,0,0,0,7,0,-9,-17,0,-33,-39,-107,-62,-129,-129,-189,-191,-190,-183,-191,-188,-187,-198,-268,-243,-321,-181,-233,-209,-479,-339,-345,-337,-482,-454,-599,-546,-555,-570,-950,-932,-1400,-1232,-1552,-1491,-29994,-1331,-29994,-29995,-29995,-29996,-29996,-29997,-29997,-29997,-29998,-29999,-29999]} 1. c4 {[%emt 0:11:21]} Nf6 {[%emt 0:00:02]} 2. Nf3 {[%emt 0:00:55]} e6 {[%emt 0:00:03]} 3. g3 {[%emt 0:01:19]} d5 {[%emt 0:00:02]} 4. Bg2 {[%emt 0:08:54]} Be7 {[%emt 0:00:03]} 5. O-O {[%emt 0:05:07]} O-O {[%emt 0:00:03]} 6. b3 {[%emt 0:00:04]} d4 {[%emt 0:00:09]} 7. e3 {[%emt 0:07:20]} c5 {[%emt 0:00:03]} 8. exd4 {[%emt 0:08:52]} cxd4 {[%emt 0:00:02]} 9. Re1 {[%emt 0:00:10]} Nc6 {[%emt 0:00:06] The position is equal.} 10. Ba3 {[%emt 0:00:06]} a5 {[%emt 0:13:34]} 11. d3 {[%emt 0:03:37] [#]} e5 $1 {[%emt 0:00:58]} 12. Qd2 {[%emt 0:05:35]} (12. Bxe7 Qxe7) 12... Nd7 {[%emt 0:07:47]} 13. h4 {[%emt 0:08:31]} (13. Bxe7 $15 Qxe7 14. Qe2) 13... h6 {[%emt 0:07:31]} 14. h5 {[%emt 0:01:52]} ({Better is} 14. Bxe7 $15 Qxe7 15. Qe2) 14... Re8 $17 {[%emt 0:03:04]} 15. Qd1 {[%emt 0:07:41] [#]} (15. Qe2 $17) 15... Bxa3 $1 $19 {[%emt 0:04:46]} 16. Nxa3 {[%emt 0:00:05]} Nc5 {[%emt 0:00:09]} 17. Nh4 {[%emt 0:00:21]} Nb4 {[%emt 0:05:01]} 18. Bf1 {[%emt 0:00:46]} Qg5 {[%emt 0:03:29] Strongly threatening ...Bg4.} 19. Nb5 {[%emt 0:06:28]} (19. Nf3 $142 Qf6 (19... Qxh5 $2 20. Nxe5 Rxe5 21. Qxh5 $19) 20. Nd2) 19... Bg4 {[%emt 0:06:20]} 20. Qb1 {[%emt 0:00:01]} Qd2 {[%emt 0:13:16]} (20... Bxh5 21. a3 Nc6 22. Nc7 $15) (20... e4 $142 21. Rxe4 Rxe4 (21... Qxh5 22. Rxd4 Be2 23. Ng2 $15) (21... Bxh5 22. Rxe8+ Rxe8 23. a3 $11) 22. dxe4 d3 (22... Bxh5 23. Nxd4 Qf6 24. Ndf5 $19)) 21. f3 {[%emt 0:00:02]} (21. Qc1 $142 Qxc1 22. Rexc1) 21... Bxh5 {[%emt 0:00:08]} 22. Nc7 $2 {[%emt 0:00:58]} (22. Qc1 {keeps fighting.} Qxc1 23. Rexc1) 22... Nbxd3 {[%emt 0:01:08]} 23. Re2 {[%emt 0:07:14]} Qg5 {[%emt 0:00:02]} 24. Nxe8 {[%emt 0:08:29]} (24. Rg2 $142 Bxf3 25. Bxd3 Qe3+ 26. Kh2 Nxd3 27. Nxa8 Rxa8 28. Nxf3 Qxf3 29. Rd2 Qh5+ 30. Kg2) 24... Rxe8 {[%emt 0:01:14]} (24... Qxg3+ 25. Rg2 Qxh4 26. Nxg7 $11) 25. Kh2 {[%emt 0:01:28] White is weak on the dark squares} e4 {[%emt 0:01:19]} 26. a3 {[%emt 0:00:55]} f5 {[%emt 0:07:11] aiming for ...f4.} 27. Bh3 {[%emt 0:01:50] [#]} Nf4 $1 {[%emt 0:02:26][%mdl 512] A dynamic duo of knights.} 28. Re1 {[%emt 0:01:30]} (28. Rea2 Nxh3) 28... Nxh3 {[%emt 0:00:39]} ({Inferior is} 28... exf3 29. Rxe8+ Bxe8 30. Nxf3 $11) 29. Kxh3 {[%emt 0:00:03]} Bxf3 {[%emt 0:00:25] ( -> ...f4)} 30. b4 {[%emt 0:01:09]} Qg4+ {[%emt 0:00:36]} 31. Kh2 {[%emt 0:00:02] [#]} f4 $1 {[%emt 0:00:07][%csl Gf4][%cal Rg4g3] Black mates.} 32. Nxf3 {[%emt 0:02:18]} (32. Kg1 Qxg3+) 32... Qxg3+ {[%emt 0:00:03]} 33. Kh1 {[%emt 0:00:09]} Qxf3+ {[%emt 0:00:03]} 34. Kg1 {[%emt 0:00:06] [#]} Re6 $1 {[%emt 0:00:09]} 35. Ra2 {[%emt 0:00:02]} (35. Qxe4 Nxe4) 35... Rg6+ {[%emt 0:00:05]} 36. Kh2 {[%emt 0:00:05]} Qh5# {[%emt 0:00:01] Black took control after the opening.   Weighted Error Value: White=1.19/Black=0.32.  Mistake:       	White=7     	Black=1      Inaccurate:     	White=5     	Black=1      OK:         	White=5     	Black=9      Best:        	---       	Black=3} 0-1

[Event "Reykjavik Open 2024"]
[Site "Reykjavik"]
[Date "2024.03.19"]
[Round "7.12"]
[White "Yilmazyerli, Mert"]
[Black "Dauner, Benedikt"]
[Result "1-0"]
[ECO "D37"]
[WhiteElo "2526"]
[BlackElo "2366"]
[Annotator "TA"]
[PlyCount "33"]
[EventDate "2024.03.12"]
[EventCountry "ISL"]
[SourceTitle "playchess.com"]
[Source "ChessBase"]
[SourceQuality "1"]
[TimeControl "40/5400+30:1800+30"]

{[%evp 9,32,8,36,34,35,-19,-16,-48,135,97,223,228,353,323,387,360,1079,1091,1322,1322,1267,1137,29998,29999,29999]} 1. d4 {[%emt 0:06:54]} d5 {[%emt 0:02:45]} 2. c4 {[%emt 0:00:04]} e6 {[%emt 0:00:06][%cal Be7e6,Be6d5][%mdl 32]} 3. Nc3 {[%emt 0:00:03]} Nf6 {[%emt 0:00:30]} 4. Nf3 {[%emt 0:00:12]} Nbd7 {[%emt 0:00:39]} 5. Qc2 {[%emt 0:03:23]} dxc4 {[%emt 0:10:15]} 6. e4 {[%emt 0:00:29]} c5 {[%emt 0:03:37]} 7. d5 {[%emt 0:07:08]} (7. dxc5 $14 Bxc5 8. Bxc4) 7... exd5 $11 {[%emt 0:10:50]} 8. e5 {[%emt 0:00:26] The position is equal.} Ng4 {[%emt 0:03:57] [#]} (8... Qe7 9. Qe2 $11) (8... Nxe5 $1 $15 {stays ahead.} 9. Nxe5 Bd6 10. Qa4+ Kf8) 9. Bg5 $1 $16 {[%emt 0:10:43]} (9. Nxd5 Ndxe5 10. Bxc4 Bd6 11. Nxe5 Nxe5 12. Bb5+ Bd7 13. Bxd7+ Qxd7 $17) 9... Qa5 {[%emt 0:11:04] Black cannot hold the game after this.} (9... Be7 $16 10. Bxe7 Kxe7) 10. O-O-O $18 {[%emt 0:07:21]} Nb6 {[%emt 0:14:48] [#]} (10... h6 {keeps fighting.}) 11. Bxc4 $1 {[%emt 0:13:10][%mdl 512]} Nxc4 {[%emt 0:00:13]} (11... d4 12. Bb5+) 12. Nxd5 {[%emt 0:00:06]} b5 {[%emt 0:06:42] [#] Prevents Qa4} (12... Ncxe5 $2 {too greedy.} 13. Qa4+ Bd7 14. Qxa5 $18) (12... Nd6 13. exd6 Bxd6) 13. Qe4 $1 {[%emt 0:05:54][%cal Od5c7] White wants to mate with Nc7+!} f5 {[%emt 0:14:32]} 14. exf6+ {[%emt 0:00:18][%cal Be5f6,Bf6f7][%mdl 32]} Kf7 {[%emt 0:00:07]} 15. Bd2 {[%emt 0:00:31]} Qxa2 {[%emt 0:08:35]} 16. Ng5+ {[%emt 0:00:06]} Kg8 {[%emt 0:00:03]} 17. f7# {[%emt 0:00:05] Weighted Error Value: White=0.12 (very precise) /Black=1.48.  Mistake:       	White=1     	Black=4      Inaccurate:     	White=1     	---        OK:         	White=2     	Black=1      Best:        	White=1     	Black=1      Strong:       	White=2     	---} 1-0

[Event "Reykjavik Open 2024"]
[Site "Reykjavik"]
[Date "2024.03.19"]
[Round "7.13"]
[White "Moksh Amit Doshi"]
[Black "Prraneeth Vuppala"]
[Result "1/2-1/2"]
[ECO "D38"]
[WhiteElo "2353"]
[BlackElo "2506"]
[Annotator "TA"]
[PlyCount "49"]
[EventDate "2024.03.12"]
[EventCountry "ISL"]
[SourceTitle "playchess.com"]
[Source "ChessBase"]
[SourceQuality "1"]
[TimeControl "40/5400+30:1800+30"]

{[%evp 14,49,27,26,21,21,27,22,21,0,7,0,46,46,24,21,42,54,43,51,49,38,65,43,60,58,71,36,43,18,21,11,19,0,26,0,13,0]} 1. d4 {[%emt 0:00:05]} Nf6 {[%emt 0:03:23]} 2. c4 {[%emt 0:00:09]} e6 {[%emt 0:00:07]} 3. Nf3 {[%emt 0:00:05]} d5 {[%emt 0:00:33]} 4. Nc3 {[%emt 0:00:11]} Bb4 {[%emt 0:00:57]} 5. Bg5 {[%emt 0:00:08]} h6 {[%emt 0:02:21]} 6. Bxf6 {[%emt 0:00:08]} Qxf6 {[%emt 0:00:18]} 7. Qa4+ {[%emt 0:00:11]} Nc6 {[%emt 0:00:12]} 8. e3 {[%emt 0:00:08]} O-O {[%emt 0:01:15]} 9. Be2 {[%emt 0:00:06][%cal Bf1e2,Be2c4,Bc4d3,Bd3c2][%mdl 32]} dxc4 {[%emt 0:10:36]} 10. O-O {[%emt 0:00:16]} Qe7 {[%emt 0:02:05]} 11. Bxc4 {[%emt 0:02:18]} Na5 {[%emt 0:00:51]} 12. Bd3 {[%emt 0:07:18]} c5 {[%emt 0:07:16]} (12... Bxc3 $11 13. bxc3 b6) 13. dxc5 {[%emt 0:01:50]} Bxc3 {[%emt 0:02:12]} 14. bxc3 {[%emt 0:00:32]} Nc6 {[%emt 0:01:33]} 15. Qb5 {[%emt 0:08:46]} Rb8 {[%emt 0:06:32]} 16. Bc2 {[%emt 0:04:47]} Bd7 {[%emt 0:12:39]} 17. Qd3 {[%emt 0:01:27] Wards off Nd4} g6 $1 {[%emt 0:00:27][%cal Of8d8]} 18. h4 {[%emt 0:06:54][%cal Bh2h4,Bh4h5][%mdl 32] White is more active.} Rfd8 {[%emt 0:06:28] [#]} 19. h5 $1 {[%emt 0:01:28]} Be8 {[%emt 0:00:57]} 20. Qc4 {[%emt 0:05:47] aiming for hxg6.} (20. Nd4 $5) 20... g5 {[%emt 0:02:19]} 21. Rfd1 {[%emt 0:11:50] Repels Rd5} Na5 {[%emt 0:03:01]} 22. Qb4 {[%emt 0:00:28]} Nc6 {[%emt 0:00:53]} 23. Qc4 {[%emt 0:03:42]} Na5 {[%emt 0:16:35]} 24. Qb4 {[%emt 0:01:45] [#] Threatens to win with Rxd8.} Nc6 {[%emt 0:00:47]} 25. Qc4 {[%emt 0:01:12] Weighted Error Value: White=0.11 (very precise) /Black=0.05 (flawless) .  Mistake:       	---       	Black=1      Inaccurate:     	White=1     	---        OK:         	White=4     	Black=7      Best:        	---       	Black=2      Strong:       	---       	Black=1} 1/2-1/2

[Event "Reykjavik Open 2024"]
[Site "Reykjavik"]
[Date "2024.03.19"]
[Round "7.14"]
[White "Stefansson, Hannes"]
[Black "Heimisson, Hilmir Freyr"]
[Result "1-0"]
[ECO "A17"]
[WhiteElo "2481"]
[BlackElo "2355"]
[Annotator "TA"]
[PlyCount "105"]
[EventDate "2024.03.12"]
[EventCountry "ISL"]
[SourceTitle "playchess.com"]
[Source "ChessBase"]
[SourceQuality "1"]
[TimeControl "40/5400+30:1800+30"]

{[%evp 9,105,0,9,2,3,6,11,6,9,-11,61,37,51,45,58,50,58,50,63,55,48,58,74,71,70,41,62,37,62,58,67,85,65,30,76,31,27,20,35,9,50,63,61,58,62,52,58,41,62,54,70,54,63,18,52,0,0,0,0,0,25,32,306,86,71,0,45,40,248,275,386,379,367,385,466,468,537,570,772,606,1084,772,789,777,774,770,1088,947,1106,984,1072,1009,1118,1107,5816,5400,29987,29986]} 1. Nf3 {[%emt 0:02:57]} d5 {[%emt 0:05:02]} 2. e3 {[%emt 0:00:36]} Nf6 {[%emt 0:01:47]} 3. c4 {[%emt 0:00:53]} e6 {[%emt 0:00:33]} 4. Nc3 {[%emt 0:01:23]} c5 {[%emt 0:01:08]} 5. cxd5 {[%emt 0:01:08]} exd5 {[%emt 0:00:34]} 6. Bb5+ {[%emt 0:06:29]} Nbd7 {[%emt 0:01:39]} 7. d4 {[%emt 0:02:21]} a6 {[%emt 0:09:12]} 8. Bxd7+ {[%emt 0:02:38] The position is equal.} Bxd7 {[%emt 0:00:32]} 9. O-O {[%emt 0:11:23]} Bd6 {[%emt 0:21:06]} (9... c4 $11) 10. dxc5 {[%emt 0:04:24]} (10. Nxd5 $5 Nxd5 11. dxc5 Bxh2+ 12. Nxh2 $16) 10... Bxc5 {[%emt 0:00:10]} 11. b3 {[%emt 0:06:22]} (11. Nxd5 Bb5 12. Nxf6+ Qxf6 $11) 11... Bg4 {[%emt 0:05:29]} 12. Bb2 {[%emt 0:01:57]} O-O {[%emt 0:00:10]} 13. h3 {[%emt 0:04:21]} Bh5 {[%emt 0:01:56]} 14. Ne2 {[%emt 0:02:36][%cal Bc3e2,Be2g3,Bg3f5,Bf5h6,Bh6g4,Bg4e5][%mdl 32]} Bxf3 {[%emt 0:13:44]} 15. gxf3 {[%emt 0:00:05]} Be7 {[%emt 0:00:16]} 16. Qd3 {[%emt 0:02:18]} Qd7 {[%emt 0:01:35]} 17. Kh2 {[%emt 0:02:10]} Rfd8 {[%emt 0:03:15]} 18. Rg1 {[%emt 0:06:04] Active counter play!} a5 {[%emt 0:04:59]} 19. Ng3 {[%emt 0:03:41]} (19. Rad1 {looks sharper.} Ra6 20. a4 g6 21. Rc1) 19... Ra6 {[%emt 0:12:44]} 20. Nf5 {[%emt 0:08:06]} Bf8 {[%emt 0:01:08]} 21. Nh6+ {[%emt 0:03:44]} Kh8 {[%emt 0:00:08]} 22. Ng4 {[%emt 0:00:14] Black must now prevent Nxf6. The board is on fire.} (22. Qf5 $5) 22... Ne8 {[%emt 0:02:06]} 23. Ne5 {[%emt 0:01:20]} Qe7 {[%emt 0:01:59]} 24. Rg4 {[%emt 0:03:33]} Re6 {[%emt 0:03:10]} 25. f4 {[%emt 0:01:28][%cal Ob2a3]} Nf6 {[%emt 0:00:34]} 26. Rg2 {[%emt 0:00:32]} Ne4 {[%emt 0:02:04]} 27. Rag1 {[%emt 0:05:54][%cal Oe5c6]} f6 {[%emt 0:03:39]} 28. Nf3 {[%emt 0:00:10]} (28. Ba3 {with more complications.} Qe8 29. Bxf8 Qxf8 30. Nf3) 28... Ra6 {[%emt 0:00:33]} 29. Nd4 {[%emt 0:00:19]} Rd7 {[%emt 0:00:36]} 30. Qd1 {[%emt 0:02:04]} Qe8 {[%emt 0:00:55]} 31. Kh1 {[%emt 0:02:40]} a4 {[%emt 0:00:40]} 32. f5 {[%emt 0:01:02]} ({Better is} 32. bxa4 $14 Rc7 33. f5) 32... axb3 $11 {[%emt 0:00:17]} 33. axb3 {[%emt 0:00:05]} Ra2 {[%emt 0:01:13]} 34. f3 {[%emt 0:04:27]} Ng5 {[%emt 0:00:47]} (34... Ng3+ $6 35. Rxg3 Rxb2 36. Ne6 $16) 35. h4 {[%emt 0:01:31]} Nh3 {[%emt 0:00:46][%mdl 8192]} (35... Bd6 $14) 36. Re1 $2 {[%emt 0:00:31]} (36. Rf1 $1 $18 {is the precise move to win.}) 36... Qh5 {[%emt 0:00:40] [#]} 37. Ree2 {[%emt 0:01:15]} (37. Ne6 $2 Qxh4 38. Qb1 Bd6 $19) (37. Rh2 $1 $16 {Ree2 would now be deadly.} Qxh4 38. Ree2) 37... Bd6 {[%emt 0:00:44]} (37... Qxh4 38. Rh2 Bd6 39. f4 $14) 38. Rg4 {[%emt 0:00:59] aiming for Qb1.} Re7 $2 {[%emt 0:00:33] [#] White leaves nothing to chance now.} (38... Ng5 $1 $14 39. Ne6 Nxe6 (39... Nxf3 $2 40. Rc2 $18) 40. fxe6 Rc7) 39. Qb1 $1 $18 {[%emt 0:02:50]} ({Inferior is} 39. Kg2 Ng5 40. Rc2 (40. hxg5 Rxb2 41. Rxb2 Qh2+ 42. Kf1 Qxb2 $14) 40... h6 $14 (40... Rxe3 $2 41. Re4 $18)) 39... Ra8 {[%emt 0:00:57]} (39... Rxb2 $142 40. Qxb2 Ng5) 40. Kg2 {[%emt 0:00:40][%cal Bh1g2,Bg2f1,Bf1g1][%mdl 32]} Ng5 {[%emt 0:00:29]} 41. hxg5 {[%emt 0:31:05]} Qh2+ {[%emt 0:01:15]} 42. Kf1 {[%emt 0:00:00]} Qh3+ {[%emt 0:01:44]} 43. Kg1 {[%emt 0:00:00] Strongly threatening gxf6.} Rae8 {[%emt 0:15:07]} 44. Qf1 {[%emt 0:00:00]} Qh5 {[%emt 0:00:46]} 45. Ne6 {[%emt 0:00:00]} Rxe6 {[%emt 0:03:29]} 46. fxe6 {[%emt 0:00:00]} f5 {[%emt 0:00:02]} 47. Rgg2 {[%emt 0:00:00]} f4 {[%emt 0:00:26]} 48. Bd4 {[%emt 0:00:00]} fxe3 {[%emt 0:00:26]} 49. Rxe3 {[%emt 0:00:00]} Qh4 {[%emt 0:00:35]} 50. Qd1 {[%emt 0:02:05]} Bf4 {[%emt 0:00:23]} 51. Ree2 {[%emt 0:00:00]} Qh5 {[%emt 0:02:18] [#]} 52. Bxg7+ $1 {[%emt 0:00:00]} Kg8 {[%emt 0:00:18]} (52... Kxg7 53. Qd4+) 53. Qxd5 {[%emt 0:00:00] Weighted Error Value: White=0.24 (precise) /Black=0.39.  Loses game:     	---       	Black=2      Missed win:     	White=1     	---        Mistake:       	White=2     	Black=2      Inaccurate:     	White=4     	Black=6      OK:         	White=13    	Black=8      Best:        	White=1     	Black=1      Strong:       	White=1     	---} 1-0

[Event "Reykjavik Open 2024"]
[Site "Reykjavik"]
[Date "2024.03.19"]
[Round "7.15"]
[White "Steingrimsson, Hedinn"]
[Black "Kistrup, Nicolai"]
[Result "1-0"]
[ECO "A29"]
[WhiteElo "2477"]
[BlackElo "2324"]
[Annotator "TA"]
[PlyCount "125"]
[EventDate "2024.03.12"]
[EventCountry "ISL"]
[SourceTitle "playchess.com"]
[Source "ChessBase"]
[SourceQuality "1"]
[TimeControl "40/5400+30:1800+30"]

{[%evp 9,125,16,0,15,0,12,26,0,26,24,10,-22,70,91,92,70,76,71,87,78,83,85,64,59,100,104,100,106,123,128,124,120,129,128,128,121,145,138,140,124,125,114,114,104,114,117,101,115,127,116,125,109,140,142,148,135,144,148,145,147,145,102,131,117,130,133,153,157,165,152,167,161,154,147,159,0,176,164,152,151,152,152,143,152,195,144,237,217,225,212,462,458,630,647,651,650,636,610,897,879,991,1673,1588,1550,1775,1614,1487,1349,1882,1517,1800,1630,1086,884,3097,5381,2427,2169]} 1. c4 {[%emt 0:08:53]} e5 {[%emt 0:00:24][%cal Be7e5,Be5e4][%mdl 32]} 2. Nc3 {[%emt 0:00:54]} Nf6 {[%emt 0:00:06]} 3. Nf3 {[%emt 0:00:04]} Nc6 {[%emt 0:01:17]} 4. g3 {[%emt 0:00:05]} Bb4 {[%emt 0:00:12]} 5. Nd5 {[%emt 0:00:05]} e4 {[%emt 0:02:37]} 6. Nh4 {[%emt 0:00:04]} O-O {[%emt 0:00:59]} 7. Bg2 {[%emt 0:00:10]} Re8 {[%emt 0:00:30]} 8. a3 {[%emt 0:00:23] White has an edge.} Bc5 {[%emt 0:06:49]} 9. O-O {[%emt 0:07:51]} d6 {[%emt 0:01:46]} 10. d3 {[%emt 0:23:04]} h6 {[%emt 0:00:11] Against Bg5} (10... exd3 $11 11. Qxd3 Ne5) 11. Nxf6+ $14 {[%emt 0:08:19]} Qxf6 {[%emt 0:00:20]} 12. Bxe4 {[%emt 0:00:48]} ({Much weaker is} 12. dxe4 $6 Qd4 $11) 12... Bg4 {[%emt 0:00:20]} 13. Ra2 {[%emt 0:02:30]} a5 {[%emt 0:21:13]} 14. b3 {[%emt 0:00:09]} Nd4 {[%emt 0:05:47]} 15. Be3 {[%emt 0:05:59][%cal Oe3d4]} c6 {[%emt 0:01:35]} 16. Bxd4 {[%emt 0:01:16]} Qxd4 {[%emt 0:19:13]} 17. Bf3 {[%emt 0:02:00]} Bh3 {[%emt 0:13:48]} 18. e3 $36 {[%emt 0:00:39][%mdl 2048] Keeping Black busy.} Qc3 {[%emt 0:04:40]} 19. Bg2 {[%emt 0:04:17]} Bxg2 {[%emt 0:05:35]} 20. Kxg2 {[%emt 0:01:49]} Qf6 {[%emt 0:03:11]} 21. d4 {[%emt 0:02:16]} Bb6 {[%emt 0:01:19]} 22. Qf3 {[%emt 0:00:04] aiming for Qxf6.} Qxf3+ {[%emt 0:03:03]} 23. Kxf3 {[%emt 0:01:13]} g6 {[%emt 0:00:26]} 24. g4 {[%emt 0:02:18]} Kg7 {[%emt 0:01:37]} 25. Ng2 {[%emt 0:01:27]} f5 {[%emt 0:02:18]} 26. gxf5 {[%emt 0:02:47]} Rf8 {[%emt 0:00:08]} 27. Ke2 {[%emt 0:02:08] fxg6 would now be deadly.} Rxf5 {[%emt 0:00:21]} 28. Rg1 {[%emt 0:01:17]} Re8 {[%emt 0:02:13]} 29. Rd2 {[%emt 0:00:02]} Kh7 {[%emt 0:01:17]} 30. h4 {[%emt 0:06:39]} Re4 {[%emt 0:00:57]} 31. f3 {[%emt 0:02:18]} Re7 {[%emt 0:00:13]} 32. Rh1 {[%emt 0:00:28]} Bd8 {[%emt 0:01:30]} 33. e4 {[%emt 0:02:16]} Rf8 {[%emt 0:00:33]} 34. Rh3 {[%emt 0:03:21]} Ref7 {[%emt 0:00:28]} 35. Kf2 {[%emt 0:02:40]} h5 {[%emt 0:00:33]} 36. f4 {[%emt 0:01:04]} Re8 {[%emt 0:00:21]} 37. Re3 {[%emt 0:00:43]} Kh6 {[%emt 0:00:36]} 38. Kg3 {[%emt 0:00:15]} Rfe7 {[%emt 0:00:19]} 39. Kf3 {[%emt 0:00:33]} Bb6 {[%emt 0:00:34]} 40. Ree2 {[%emt 0:01:19]} Rf7 {[%emt 0:00:28]} 41. Kg3 {[%emt 0:35:34]} Rfe7 {[%emt 0:09:06]} 42. Kf3 {[%emt 0:00:00]} Rf7 $1 {[%emt 0:05:19]} 43. Ke3 {[%emt 0:00:00]} c5 {[%emt 0:04:50]} 44. d5 {[%emt 0:00:00]} Bd8 {[%emt 0:00:44]} 45. Kd3 {[%emt 0:00:00]} Bf6 {[%emt 0:00:31]} 46. Rd1 {[%emt 0:00:00]} Rfe7 {[%emt 0:01:36][%cal Oa5a4]} 47. Rb1 {[%emt 0:00:00]} (47. Rde1 $18) 47... Ra8 {[%emt 0:01:27] [#]} (47... Bd4 $16 48. Rbe1 Kg7) 48. a4 $1 $18 {[%emt 0:00:00]} Rae8 {[%emt 0:00:51]} 49. Rf1 {[%emt 0:00:00]} Rf7 $2 {[%emt 0:03:10] [#]} (49... Bd4 50. f5 Rf7) 50. e5 $1 {[%emt 0:00:00][%cal Be4e5,Be5e6][%mdl 544] White is clearly winning.} Bg7 {[%emt 0:03:49]} ({But not} 50... Bxe5 51. Rfe1) (50... Bd8 51. e6) 51. e6 {[%emt 0:00:00]} (51. exd6 Rxe2 52. Kxe2 Bf8 $16) 51... Rff8 {[%emt 0:00:42] Black is weak on the light squares} 52. Ne3 {[%emt 0:00:00]} Bf6 {[%emt 0:00:56]} 53. Rh2 {[%emt 0:00:00]} Bd4 {[%emt 0:00:59]} 54. f5 {[%emt 0:00:00]} Bxe3 {[%emt 0:00:49]} 55. Kxe3 {[%emt 0:00:00]} gxf5 {[%emt 0:01:35][%mdl 4096] Endgame. KRR-KRR} 56. Rg2 {[%emt 0:00:00]} Rg8 {[%emt 0:01:44]} 57. Rxg8 {[%emt 0:00:00]} Rxg8 {[%emt 0:00:04]} 58. Rxf5 {[%emt 0:00:00] KR-KR} Rg1 {[%emt 0:00:43]} 59. Rf6+ {[%emt 0:00:00]} Kg7 {[%emt 0:00:18]} 60. Rf7+ {[%emt 0:00:00]} Kg6 {[%emt 0:00:29]} 61. Rxb7 {[%emt 0:00:00]} Kf6 {[%emt 0:00:53]} 62. Rf7+ {[%emt 0:00:00]} Kg6 {[%emt 0:00:08]} 63. Rd7 {[%emt 0:00:29] Weighted Error Value: White=0.08 (flawless) /Black=0.21 (precise) .  Mistake:       	White=1     	Black=3      Inaccurate:     	White=2     	Black=3      OK:         	White=22    	Black=17     Best:        	White=2     	Black=1      Strong:       	---       	Black=1      Brilliant:      	White=1     	---} 1-0